[Event "January 2 Early 2024"]
[Site "https://www.chess.com"]
[Date "2024.01.02"]
[Round "9"]
[White "Bartel, Michal"]
[Black "Coro, Lucas"]
[Result "0-1"]
[Board "71"]
[TimeControl "180+1"]
[WhiteFideId "1119257"]
[BlackFideId "147222"]
[WhiteElo "2645"]
[BlackElo "2525"]
[WhiteTeam "POL"]
[BlackTeam "ARG"]
[WhiteClock "0:00:25"]
[BlackClock "0:00:06"]

1. e4 {[%clk 0:02:57]}  c6 {[%clk 0:02:58]} 2. Nc3 {[%clk 0:02:56]}  d5 {[%clk 0:02:59]} 3. Qf3 {[%clk 0:02:55]}  dxe4 {[%clk 0:02:47]} 4. Nxe4 {[%clk 0:02:54]}  Nf6 {[%clk 0:02:47]} 5. Bc4 {[%clk 0:02:54]}  Nbd7 {[%clk 0:02:32]} 6. d4 {[%clk 0:02:54]}  e6 {[%clk 0:01:57]} 7. Ne2 {[%clk 0:02:52]}  Nxe4 {[%clk 0:01:57]} 8. Qxe4 {[%clk 0:02:53]}  Nf6 {[%clk 0:01:57]} 9. Qd3 {[%clk 0:02:51]}  c5 {[%clk 0:01:57]} 10. O-O {[%clk 0:02:44]}  cxd4 {[%clk 0:01:56]} 11. Qxd4 {[%clk 0:02:45]}  Qxd4 {[%clk 0:01:56]} 12. Nxd4 {[%clk 0:02:46]}  Bc5 {[%clk 0:01:56]} 13. Nb3 {[%clk 0:02:36]}  Bb6 {[%clk 0:01:54]} 14. Bg5 {[%clk 0:02:29]}  Bd7 {[%clk 0:01:52]} 15. Rad1 {[%clk 0:02:25]}  Rc8 {[%clk 0:01:52]} 16. Bd3 {[%clk 0:02:20]}  Nd5 {[%clk 0:01:43]} 17. c3 {[%clk 0:02:16]}  f6 {[%clk 0:01:43]} 18. Bc1 {[%clk 0:02:09]}  Kf7 {[%clk 0:01:42]} 19. Be4 {[%clk 0:02:06]}  Bc6 {[%clk 0:01:37]} 20. Rfe1 {[%clk 0:02:05]}  Rhd8 {[%clk 0:01:26]} 21. Nd4 {[%clk 0:02:02]}  Nxc3 {[%clk 0:01:03]} 22. bxc3 {[%clk 0:01:48]}  Bxe4 {[%clk 0:01:03]} 23. Rxe4 {[%clk 0:01:45]}  e5 {[%clk 0:01:03]} 24. Rde1 {[%clk 0:01:31]}  exd4 {[%clk 0:01:03]} 25. cxd4 {[%clk 0:01:26]}  Rc7 {[%clk 0:00:54]} 26. Bb2 {[%clk 0:01:04]}  Rdd7 {[%clk 0:00:49]} 27. Kf1 {[%clk 0:00:52]}  Rc2 {[%clk 0:00:46]} 28. R1e2 {[%clk 0:00:49]}  Rxe2 {[%clk 0:00:37]} 29. Kxe2 {[%clk 0:00:49]}  Re7 {[%clk 0:00:32]} 30. Kd3 {[%clk 0:00:48]}  Rxe4 {[%clk 0:00:31]} 31. Kxe4 {[%clk 0:00:49]}  Ke6 {[%clk 0:00:32]} 32. g4 {[%clk 0:00:46]}  Bc7 {[%clk 0:00:22]} 33. f4 {[%clk 0:00:42]}  Kd6 {[%clk 0:00:19]} 34. Ba3+ {[%clk 0:00:38]}  Kc6 {[%clk 0:00:19]} 35. Bf8 {[%clk 0:00:38]}  g6 {[%clk 0:00:18]} 36. Be7 {[%clk 0:00:38]}  f5+ {[%clk 0:00:16]} 37. gxf5 {[%clk 0:00:38]}  gxf5+ {[%clk 0:00:16]} 38. Kxf5 {[%clk 0:00:38]}  Kd5 {[%clk 0:00:17]} 39. Bf6 {[%clk 0:00:38]}  b5 {[%clk 0:00:17]} 40. Kg5 {[%clk 0:00:23]}  b4 {[%clk 0:00:16]} 41. Be7 {[%clk 0:00:23]}  a5 {[%clk 0:00:15]} 42. f5 {[%clk 0:00:23]}  Bb6 {[%clk 0:00:13]} 43. f6 {[%clk 0:00:22]}  Ke6 {[%clk 0:00:13]} 44. d5+ {[%clk 0:00:21]}  Kf7 {[%clk 0:00:12]} 45. Kh6 {[%clk 0:00:20]}  Bd4 {[%clk 0:00:10]} 46. Kxh7 {[%clk 0:00:20]}  Bxf6 {[%clk 0:00:10]} 47. Bxf6 {[%clk 0:00:19]}  Kxf6 {[%clk 0:00:10]} 48. d6 {[%clk 0:00:20]}  a4 {[%clk 0:00:10]} 49. d7 {[%clk 0:00:21]}  Ke7 {[%clk 0:00:10]} 50. Kg7 {[%clk 0:00:21]}  b3 {[%clk 0:00:10]} 51. h4 {[%clk 0:00:21]}  b2 {[%clk 0:00:10]} 52. h5 {[%clk 0:00:22]}  b1=Q {[%clk 0:00:11]} 53. h6 {[%clk 0:00:22]}  Qg1+ {[%clk 0:00:11]} 54. Kh8 {[%clk 0:00:23]}  Kxd7 {[%clk 0:00:11]} 55. a3 {[%clk 0:00:23]}  Qd4+ {[%clk 0:00:10]} 56. Kg8 {[%clk 0:00:23]}  Ke7 {[%clk 0:00:10]} 57. h7 {[%clk 0:00:24]}  Qg4+ {[%clk 0:00:10]} 58. Kh8 {[%clk 0:00:24]}  Qd4+ {[%clk 0:00:11]} 59. Kg8 {[%clk 0:00:25]}  Qd5+ {[%clk 0:00:12]} 60. Kg7 {[%clk 0:00:25]}  Qf7+ {[%clk 0:00:08]} 61. Kh6 {[%clk 0:00:25]}  Qf8+ {[%clk 0:00:08]} 62. Kg6 {[%clk 0:00:26]}  Ke6 {[%clk 0:00:08]} 63. Kh5 {[%clk 0:00:26]}  Kf5 {[%clk 0:00:06]} 64. h8=Q {[%clk 0:00:25]}  Qxh8# {[%clk 0:00:06]} 0-1

[Event "January 2 Early 2024"]
[Site "https://www.chess.com"]
[Date "2024.01.02"]
[Round "9"]
[White "Gryshko, Vitalii"]
[Black "Manukyan, Sargis A."]
[Result "0-1"]
[Board "72"]
[TimeControl "180+1"]
[WhiteFideId "14174286"]
[BlackFideId "13303970"]
[WhiteElo "2507"]
[BlackElo "2637"]
[WhiteTeam "UKR"]
[BlackTeam "ARM"]
[WhiteClock "0:00:21"]
[BlackClock "0:01:07"]

1. c4 {[%clk 0:03:00]}  Nf6 {[%clk 0:02:58]} 2. Nc3 {[%clk 0:02:58]}  e6 {[%clk 0:02:58]} 3. e4 {[%clk 0:02:58]}  c5 {[%clk 0:02:57]} 4. e5 {[%clk 0:02:57]}  Ng8 {[%clk 0:02:57]} 5. Nf3 {[%clk 0:02:57]}  Nc6 {[%clk 0:02:56]} 6. d4 {[%clk 0:02:58]}  cxd4 {[%clk 0:02:52]} 7. Nxd4 {[%clk 0:02:59]}  Nxe5 {[%clk 0:02:52]} 8. Ndb5 {[%clk 0:02:58]}  d6 {[%clk 0:02:51]} 9. Bf4 {[%clk 0:02:58]}  f6 {[%clk 0:02:35]} 10. Qd2 {[%clk 0:02:38]}  a6 {[%clk 0:02:25]} 11. Nd4 {[%clk 0:02:35]}  Ne7 {[%clk 0:02:24]} 12. O-O-O {[%clk 0:02:32]}  N7c6 {[%clk 0:02:21]} 13. Nxc6 {[%clk 0:02:25]}  Nxc6 {[%clk 0:02:22]} 14. Bxd6 {[%clk 0:02:24]}  Bxd6 {[%clk 0:02:23]} 15. Qxd6 {[%clk 0:02:25]}  Qxd6 {[%clk 0:02:24]} 16. Rxd6 {[%clk 0:02:26]}  Ke7 {[%clk 0:02:24]} 17. Rd2 {[%clk 0:02:25]}  Bd7 {[%clk 0:02:20]} 18. Ne4 {[%clk 0:02:14]}  Rad8 {[%clk 0:02:16]} 19. Be2 {[%clk 0:02:09]}  Bc8 {[%clk 0:02:15]} 20. Rhd1 {[%clk 0:02:08]}  Rxd2 {[%clk 0:02:15]} 21. Rxd2 {[%clk 0:02:09]}  Rd8 {[%clk 0:02:15]} 22. c5 {[%clk 0:01:54]}  Rxd2 {[%clk 0:02:14]} 23. Kxd2 {[%clk 0:01:55]}  Bd7 {[%clk 0:02:05]} 24. Kc3 {[%clk 0:01:54]}  Nd8 {[%clk 0:02:04]} 25. b4 {[%clk 0:01:52]}  Bc6 {[%clk 0:02:05]} 26. Bf3 {[%clk 0:01:51]}  Nf7 {[%clk 0:02:00]} 27. Nd2 {[%clk 0:01:37]}  Bxf3 {[%clk 0:01:58]} 28. Nxf3 {[%clk 0:01:38]}  e5 {[%clk 0:01:58]} 29. a4 {[%clk 0:01:37]}  Ke6 {[%clk 0:01:58]} 30. Kc4 {[%clk 0:01:37]}  h6 {[%clk 0:01:54]} 31. b5 {[%clk 0:01:37]}  axb5+ {[%clk 0:01:54]} 32. Kxb5 {[%clk 0:01:15]}  Kd5 {[%clk 0:01:51]} 33. Nd2 {[%clk 0:01:15]}  e4 {[%clk 0:01:49]} 34. Nc4 {[%clk 0:01:15]}  f5 {[%clk 0:01:48]} 35. Nb6+ {[%clk 0:01:14]}  Kd4 {[%clk 0:01:47]} 36. a5 {[%clk 0:01:13]}  f4 {[%clk 0:01:47]} 37. Nc4 {[%clk 0:01:09]}  g5 {[%clk 0:01:33]} 38. Nd6 {[%clk 0:01:07]}  e3 {[%clk 0:01:14]} 39. fxe3+ {[%clk 0:01:02]}  fxe3 {[%clk 0:01:15]} 40. Nf5+ {[%clk 0:00:51]}  Ke4 {[%clk 0:01:14]} 41. Ng3+ {[%clk 0:00:50]}  Kd4 {[%clk 0:01:09]} 42. Kb6 {[%clk 0:00:36]}  Nd8 {[%clk 0:01:07]} 43. Kc7 {[%clk 0:00:10]}  Ne6+ {[%clk 0:01:07]} 44. Kxb7 {[%clk 0:00:11]}  Nxc5+ {[%clk 0:01:06]} 45. Kc6 {[%clk 0:00:10]}  Na6 {[%clk 0:01:03]} 46. Kb6 {[%clk 0:00:10]}  Nb4 {[%clk 0:01:03]} 47. Kb5 {[%clk 0:00:09]}  Nd5 {[%clk 0:01:02]} 48. Kc6 {[%clk 0:00:07]}  Kc4 {[%clk 0:00:55]} 49. a6 {[%clk 0:00:06]}  Nb4+ {[%clk 0:00:54]} 50. Kb6 {[%clk 0:00:06]}  Nxa6 {[%clk 0:00:55]} 51. Kxa6 {[%clk 0:00:07]}  Kd3 {[%clk 0:00:55]} 52. Kb6 {[%clk 0:00:07]}  e2 {[%clk 0:00:56]} 53. Nxe2 {[%clk 0:00:07]}  Kxe2 {[%clk 0:00:57]} 54. Kc5 {[%clk 0:00:08]}  Kf2 {[%clk 0:00:58]} 55. g4 {[%clk 0:00:08]}  Kg2 {[%clk 0:00:58]} 56. Kd4 {[%clk 0:00:08]}  Kxh2 {[%clk 0:00:59]} 57. Ke5 {[%clk 0:00:09]}  Kg3 {[%clk 0:00:58]} 58. Kf5 {[%clk 0:00:08]}  Kh4 {[%clk 0:00:58]} 59. Kg6 {[%clk 0:00:09]}  Kxg4 {[%clk 0:00:59]} 60. Kxh6 {[%clk 0:00:10]}  Kh4 {[%clk 0:00:58]} 61. Kg6 {[%clk 0:00:11]}  g4 {[%clk 0:00:59]} 62. Kf6 {[%clk 0:00:12]}  g3 {[%clk 0:00:59]} 63. Kf5 {[%clk 0:00:13]}  g2 {[%clk 0:01:00]} 64. Ke4 {[%clk 0:00:13]}  g1=Q {[%clk 0:01:01]} 65. Kf3 {[%clk 0:00:14]}  Qg4+ {[%clk 0:01:01]} 66. Ke3 {[%clk 0:00:15]}  Kg5 {[%clk 0:01:02]} 67. Kf2 {[%clk 0:00:15]}  Kf5 {[%clk 0:01:03]} 68. Ke3 {[%clk 0:00:16]}  Qf4+ {[%clk 0:01:03]} 69. Kd3 {[%clk 0:00:17]}  Ke5 {[%clk 0:01:03]} 70. Kc3 {[%clk 0:00:17]}  Qe4 {[%clk 0:01:04]} 71. Kd2 {[%clk 0:00:17]}  Kd5 {[%clk 0:01:05]} 72. Kc3 {[%clk 0:00:18]}  Kc5 {[%clk 0:01:05]} 73. Kd2 {[%clk 0:00:19]}  Kc4 {[%clk 0:01:06]} 74. Kc1 {[%clk 0:00:19]}  Qg2 {[%clk 0:01:06]} 75. Kd1 {[%clk 0:00:20]}  Kc3 {[%clk 0:01:07]} 76. Ke1 {[%clk 0:00:21]}  Kd3 {[%clk 0:01:06]} 77. Kd1 {[%clk 0:00:21]}  Qg1# {[%clk 0:01:07]} 0-1

[Event "January 2 Early 2024"]
[Site "https://www.chess.com"]
[Date "2024.01.02"]
[Round "9"]
[White "Brankovic, Dejan"]
[Black "Niedbala, Bartlomiej"]
[Result "0-1"]
[Board "73"]
[TimeControl "180+1"]
[WhiteFideId "921602"]
[BlackFideId "21834008"]
[WhiteElo "2481"]
[BlackElo "2633"]
[WhiteTeam "SRB"]
[BlackTeam "POL"]
[WhiteClock "0:00:00"]
[BlackClock "0:00:02"]

1. e4 {[%clk 0:03:00]}  Nf6 {[%clk 0:02:58]} 2. e5 {[%clk 0:02:58]}  Nd5 {[%clk 0:02:59]} 3. d4 {[%clk 0:02:59]}  d6 {[%clk 0:02:59]} 4. c4 {[%clk 0:02:59]}  Nb6 {[%clk 0:02:59]} 5. f4 {[%clk 0:03:00]}  g6 {[%clk 0:03:00]} 6. Nc3 {[%clk 0:02:59]}  Bg7 {[%clk 0:03:00]} 7. Be3 {[%clk 0:03:00]}  Be6 {[%clk 0:03:00]} 8. b3 {[%clk 0:02:57]}  O-O {[%clk 0:02:59]} 9. Qd2 {[%clk 0:02:56]}  dxe5 {[%clk 0:02:47]} 10. fxe5 {[%clk 0:02:55]}  c5 {[%clk 0:02:48]} 11. d5 {[%clk 0:02:55]}  Bf5 {[%clk 0:02:48]} 12. Nf3 {[%clk 0:02:55]}  Bg4 {[%clk 0:02:47]} 13. Be2 {[%clk 0:02:40]}  Bxf3 {[%clk 0:02:28]} 14. Bxf3 {[%clk 0:02:39]}  N8d7 {[%clk 0:02:29]} 15. e6 {[%clk 0:02:24]}  fxe6 {[%clk 0:02:07]} 16. dxe6 {[%clk 0:02:23]}  Ne5 {[%clk 0:02:04]} 17. Bxb7 {[%clk 0:02:20]}  Qxd2+ {[%clk 0:01:54]} 18. Kxd2 {[%clk 0:02:08]}  Rad8+ {[%clk 0:01:52]} 19. Ke2 {[%clk 0:02:04]}  Ng4 {[%clk 0:01:45]} 20. Nd5 {[%clk 0:01:39]}  Nxe3 {[%clk 0:01:32]} 21. Kxe3 {[%clk 0:01:37]}  Bd4+ {[%clk 0:01:15]} 22. Ke4 {[%clk 0:01:28]}  Nxd5 {[%clk 0:01:01]} 23. Bxd5 {[%clk 0:01:22]}  Rf2 {[%clk 0:01:00]} 24. Raf1 {[%clk 0:01:08]}  Rxa2 {[%clk 0:00:50]} 25. Rf7 {[%clk 0:01:07]}  Re2+ {[%clk 0:00:33]} 26. Kd3 {[%clk 0:01:01]}  Re3+ {[%clk 0:00:33]} 27. Kc2 {[%clk 0:00:57]}  Rb8 {[%clk 0:00:34]} 28. Rb1 {[%clk 0:00:52]}  Bf6 {[%clk 0:00:25]} 29. Kd2 {[%clk 0:00:44]}  Bg5 {[%clk 0:00:21]} 30. Kc2 {[%clk 0:00:35]}  a5 {[%clk 0:00:14]} 31. g3 {[%clk 0:00:28]}  a4 {[%clk 0:00:14]} 32. h4 {[%clk 0:00:21]}  axb3+ {[%clk 0:00:13]} 33. Kb2 {[%clk 0:00:21]}  Re2+ {[%clk 0:00:07]} 34. Kc3 {[%clk 0:00:20]}  Re3+ {[%clk 0:00:05]} 35. Kd2 {[%clk 0:00:16]}  Bh6 {[%clk 0:00:04]} 36. Kd1 {[%clk 0:00:14]}  Rd3+ {[%clk 0:00:03]} 37. Ke2 {[%clk 0:00:14]}  Rd2+ {[%clk 0:00:04]} 38. Kf3 {[%clk 0:00:14]}  Rd3+ {[%clk 0:00:04]} 39. Kf2 {[%clk 0:00:12]}  Re8 {[%clk 0:00:03]} 40. g4 {[%clk 0:00:11]}  Bg7 {[%clk 0:00:02]} 41. Ke2 {[%clk 0:00:08]}  Rc3 {[%clk 0:00:03]} 42. Kd2 {[%clk 0:00:07]}  Bd4 {[%clk 0:00:03]} 43. h5 {[%clk 0:00:06]}  g5 {[%clk 0:00:02]} 44. h6 {[%clk 0:00:03]}  Rh3 {[%clk 0:00:01]} 45. Rf5 {[%clk 0:00:00]}  Rh1 {[%clk 0:00:02]} 0-1

[Event "January 2 Early 2024"]
[Site "https://www.chess.com"]
[Date "2024.01.02"]
[Round "9"]
[White "Mohammadi, Melika"]
[Black "Gontcharov, Vladislav"]
[Result "0-1"]
[Board "74"]
[TimeControl "180+1"]
[WhiteFideId "42529271"]
[BlackFideId "4123492"]
[WhiteElo "2480"]
[BlackElo "2631"]
[WhiteTeam "IRI"]
[BlackTeam "RUS"]
[WhiteClock "0:00:00"]
[BlackClock "0:00:23"]

1. e4 {[%clk 0:02:56]}  e6 {[%clk 0:02:59]} 2. d4 {[%clk 0:02:55]}  d5 {[%clk 0:02:58]} 3. Nc3 {[%clk 0:02:56]}  Nc6 {[%clk 0:02:57]} 4. Nf3 {[%clk 0:02:45]}  Nf6 {[%clk 0:02:56]} 5. e5 {[%clk 0:02:38]}  Ne4 {[%clk 0:02:56]} 6. Ne2 {[%clk 0:02:38]}  f6 {[%clk 0:02:45]} 7. exf6 {[%clk 0:02:31]}  Qxf6 {[%clk 0:02:41]} 8. Nf4 {[%clk 0:02:20]}  Bd6 {[%clk 0:02:33]} 9. Nh5 {[%clk 0:02:07]}  Qf7 {[%clk 0:02:29]} 10. Ng3 {[%clk 0:02:02]}  O-O {[%clk 0:02:09]} 11. Be3 {[%clk 0:01:54]}  Bb4+ {[%clk 0:01:43]} 12. c3 {[%clk 0:01:50]}  Nxc3 {[%clk 0:01:43]} 13. bxc3 {[%clk 0:01:51]}  Bxc3+ {[%clk 0:01:43]} 14. Bd2 {[%clk 0:01:50]}  Bxa1 {[%clk 0:01:42]} 15. Qxa1 {[%clk 0:01:49]}  e5 {[%clk 0:01:29]} 16. dxe5 {[%clk 0:01:45]}  Bg4 {[%clk 0:01:28]} 17. Be2 {[%clk 0:01:45]}  Bxf3 {[%clk 0:01:27]} 18. Bxf3 {[%clk 0:01:44]}  Nxe5 {[%clk 0:01:27]} 19. Be2 {[%clk 0:01:43]}  Nc4 {[%clk 0:01:10]} 20. f3 {[%clk 0:01:06]}  Nxd2 {[%clk 0:01:09]} 21. Kxd2 {[%clk 0:01:07]}  Qf4+ {[%clk 0:01:05]} 22. Kd1 {[%clk 0:01:07]}  Qa4+ {[%clk 0:00:58]} 23. Ke1 {[%clk 0:00:52]}  Qb4+ {[%clk 0:00:58]} 24. Kd1 {[%clk 0:00:50]}  Rae8 {[%clk 0:00:51]} 25. a3 {[%clk 0:00:49]}  Qb3+ {[%clk 0:00:50]} 26. Kd2 {[%clk 0:00:48]}  Qe3+ {[%clk 0:00:50]} 27. Kd1 {[%clk 0:00:47]}  Re6 {[%clk 0:00:43]} 28. Qb2 {[%clk 0:00:27]}  Rb6 {[%clk 0:00:39]} 29. Qc1 {[%clk 0:00:22]}  Qd4+ {[%clk 0:00:32]} 30. Ke1 {[%clk 0:00:21]}  Re8 {[%clk 0:00:27]} 31. Nf5 {[%clk 0:00:00]}  Qd3 {[%clk 0:00:23]} 0-1

[Event "January 2 Early 2024"]
[Site "https://www.chess.com"]
[Date "2024.01.02"]
[Round "9"]
[White "Kamsky, Gata"]
[Black "Delgado Kuffo, Andres"]
[Result "1-0"]
[Board "79"]
[TimeControl "180+1"]
[WhiteFideId "2000024"]
[BlackFideId "3600475"]
[WhiteElo "2949"]
[BlackElo "2266"]
[WhiteTeam "USA"]
[BlackTeam "ECU"]
[WhiteClock "0:01:48"]
[BlackClock "0:01:51"]

1. d4 {[%clk 0:02:59]}  Nf6 {[%clk 0:02:59]} 2. Bf4 {[%clk 0:02:58]}  c5 {[%clk 0:02:58]} 3. e3 {[%clk 0:02:55]}  Qb6 {[%clk 0:02:57]} 4. Na3 {[%clk 0:02:50]}  Qxb2 {[%clk 0:02:53]} 5. Nb5 {[%clk 0:02:50]}  Qb4+ {[%clk 0:02:49]} 6. c3 {[%clk 0:02:49]}  Qa5 {[%clk 0:02:50]} 7. Nc7+ {[%clk 0:02:44]}  Kd8 {[%clk 0:02:48]} 8. Nxa8 {[%clk 0:02:19]}  Qxc3+ {[%clk 0:02:41]} 9. Ke2 {[%clk 0:02:20]}  Qb2+ {[%clk 0:02:34]} 10. Kf3 {[%clk 0:02:15]}  e5 {[%clk 0:02:27]} 11. dxe5 {[%clk 0:02:11]}  d6 {[%clk 0:02:25]} 12. exf6 {[%clk 0:02:08]}  gxf6 {[%clk 0:02:19]} 13. Rb1 {[%clk 0:02:02]}  Bg4+ {[%clk 0:02:11]} 14. Kxg4 {[%clk 0:02:01]}  Qxf2 {[%clk 0:02:11]} 15. Kh3 {[%clk 0:01:52]}  Rg8 {[%clk 0:02:00]} 16. Qe2 {[%clk 0:01:49]}  Qxe2 {[%clk 0:01:51]} 17. Nxe2 {[%clk 0:01:48]} 1-0

[Event "January 2 Early 2024"]
[Site "https://www.chess.com"]
[Date "2024.01.02"]
[Round "9"]
[White "xakevicius91"]
[Black "Bardyk, Artem"]
[Result "0-1"]
[Board "80"]
[TimeControl "180+1"]
[BlackFideId "34349979"]
[WhiteElo "2506"]
[BlackElo "2721"]
[BlackTeam "RUS"]
[WhiteClock "0:00:31"]
[BlackClock "0:00:05"]

1. e4 {[%clk 0:03:00]}  e5 {[%clk 0:02:59]} 2. Nf3 {[%clk 0:03:00]}  Nc6 {[%clk 0:02:59]} 3. d4 {[%clk 0:03:00]}  exd4 {[%clk 0:02:59]} 4. Nxd4 {[%clk 0:03:01]}  Bb4+ {[%clk 0:03:00]} 5. c3 {[%clk 0:02:59]}  Bc5 {[%clk 0:03:00]} 6. Nf5 {[%clk 0:02:55]}  Qf6 {[%clk 0:02:05]} 7. Be3 {[%clk 0:02:52]}  Bxe3 {[%clk 0:02:04]} 8. Nxe3 {[%clk 0:02:53]}  Nge7 {[%clk 0:02:04]} 9. Be2 {[%clk 0:02:53]}  d6 {[%clk 0:02:04]} 10. O-O {[%clk 0:02:53]}  O-O {[%clk 0:02:03]} 11. f3 {[%clk 0:02:53]}  Be6 {[%clk 0:02:01]} 12. Qd2 {[%clk 0:02:53]}  Qh6 {[%clk 0:01:55]} 13. c4 {[%clk 0:02:50]}  f5 {[%clk 0:01:53]} 14. exf5 {[%clk 0:02:49]}  Nxf5 {[%clk 0:01:50]} 15. Nxf5 {[%clk 0:02:43]}  Qxd2 {[%clk 0:01:45]} 16. Nxd2 {[%clk 0:02:44]}  Bxf5 {[%clk 0:01:46]} 17. Nb3 {[%clk 0:02:40]}  a5 {[%clk 0:01:43]} 18. Rae1 {[%clk 0:02:08]}  Bc2 {[%clk 0:01:30]} 19. Nc1 {[%clk 0:02:00]}  Rae8 {[%clk 0:01:28]} 20. Bd1 {[%clk 0:01:58]}  Bxd1 {[%clk 0:01:18]} 21. Rxd1 {[%clk 0:01:57]}  Ne5 {[%clk 0:01:18]} 22. b3 {[%clk 0:01:56]}  a4 {[%clk 0:01:18]} 23. Rfe1 {[%clk 0:01:54]}  axb3 {[%clk 0:01:18]} 24. axb3 {[%clk 0:01:55]}  Re6 {[%clk 0:01:08]} 25. Nd3 {[%clk 0:01:48]}  Rfe8 {[%clk 0:01:05]} 26. Nxe5 {[%clk 0:01:47]}  Rxe5 {[%clk 0:01:06]} 27. Rxe5 {[%clk 0:01:47]}  Rxe5 {[%clk 0:01:07]} 28. Kf2 {[%clk 0:01:48]}  Ra5 {[%clk 0:01:07]} 29. Re1 {[%clk 0:01:38]}  Kf7 {[%clk 0:01:06]} 30. h4 {[%clk 0:01:36]}  Ra2+ {[%clk 0:01:02]} 31. Kg3 {[%clk 0:01:36]}  Rb2 {[%clk 0:00:57]} 32. Re3 {[%clk 0:01:36]}  c6 {[%clk 0:00:49]} 33. Kh3 {[%clk 0:01:35]}  d5 {[%clk 0:00:49]} 34. cxd5 {[%clk 0:01:34]}  cxd5 {[%clk 0:00:50]} 35. g4 {[%clk 0:01:34]}  Rd2 {[%clk 0:00:39]} 36. Kg3 {[%clk 0:01:34]}  Rd4 {[%clk 0:00:33]} 37. Kf2 {[%clk 0:01:30]}  Rb4 {[%clk 0:00:30]} 38. Ke2 {[%clk 0:01:26]}  d4 {[%clk 0:00:30]} 39. Re4 {[%clk 0:01:20]}  Kf6 {[%clk 0:00:20]} 40. g5+ {[%clk 0:01:14]}  Kg6 {[%clk 0:00:16]} 41. f4 {[%clk 0:01:01]}  b5 {[%clk 0:00:14]} 42. Kd3 {[%clk 0:00:55]}  Rxb3+ {[%clk 0:00:14]} 43. Kxd4 {[%clk 0:00:39]}  Rb4+ {[%clk 0:00:14]} 44. Ke5 {[%clk 0:00:39]}  Rxe4+ {[%clk 0:00:15]} 45. Kxe4 {[%clk 0:00:40]}  Kh5 {[%clk 0:00:02]} 46. f5 {[%clk 0:00:41]}  h6 {[%clk 0:00:03]} 47. f6 {[%clk 0:00:40]}  gxf6 {[%clk 0:00:02]} 48. gxf6 {[%clk 0:00:27]}  Kg6 {[%clk 0:00:02]} 49. Kd5 {[%clk 0:00:27]}  Kxf6 {[%clk 0:00:02]} 50. Kc5 {[%clk 0:00:28]}  Kf5 {[%clk 0:00:02]} 51. Kxb5 {[%clk 0:00:28]}  Kg4 {[%clk 0:00:01]} 52. Kc4 {[%clk 0:00:29]}  Kxh4 {[%clk 0:00:01]} 53. Kd3 {[%clk 0:00:30]}  Kg3 {[%clk 0:00:02]} 54. Ke2 {[%clk 0:00:31]}  Kg2 {[%clk 0:00:02]} 55. Ke3 {[%clk 0:00:31]}  h5 {[%clk 0:00:03]} 56. Kf4 {[%clk 0:00:32]}  h4 {[%clk 0:00:04]} 57. Kg5 {[%clk 0:00:31]}  h3 {[%clk 0:00:05]} 0-1

[Event "January 2 Early 2024"]
[Site "https://www.chess.com"]
[Date "2024.01.02"]
[Round "9"]
[White "Liyanage, Ranindu Dilshan"]
[Black "Stojanovski, Sandi"]
[Result "1-0"]
[Board "81"]
[TimeControl "180+1"]
[WhiteFideId "9915834"]
[BlackFideId "1403249"]
[WhiteElo "2704"]
[BlackElo "2504"]
[WhiteTeam "SRI"]
[BlackTeam "DEN"]
[WhiteClock "0:00:11"]
[BlackClock "0:00:14"]

1. Nf3 {[%clk 0:03:00]}  d5 {[%clk 0:02:59]} 2. c4 {[%clk 0:03:01]}  e6 {[%clk 0:02:57]} 3. e3 {[%clk 0:03:01]}  Nf6 {[%clk 0:02:57]} 4. b3 {[%clk 0:03:02]}  c5 {[%clk 0:02:56]} 5. Bb2 {[%clk 0:03:02]}  Be7 {[%clk 0:02:54]} 6. cxd5 {[%clk 0:02:58]}  exd5 {[%clk 0:02:52]} 7. Be2 {[%clk 0:02:59]}  O-O {[%clk 0:02:51]} 8. O-O {[%clk 0:02:57]}  Nc6 {[%clk 0:02:45]} 9. d4 {[%clk 0:02:57]}  Bg4 {[%clk 0:02:43]} 10. dxc5 {[%clk 0:02:51]}  Bxc5 {[%clk 0:02:42]} 11. Nc3 {[%clk 0:02:50]}  Rc8 {[%clk 0:02:35]} 12. Rc1 {[%clk 0:02:48]}  Bd6 {[%clk 0:02:34]} 13. h3 {[%clk 0:02:45]}  Be6 {[%clk 0:02:31]} 14. Nb5 {[%clk 0:02:39]}  Bb8 {[%clk 0:02:29]} 15. Nbd4 {[%clk 0:02:39]}  Qd7 {[%clk 0:02:27]} 16. Bb5 {[%clk 0:02:27]}  Bxh3 {[%clk 0:02:03]} 17. Be2 {[%clk 0:01:13]}  Ne4 {[%clk 0:01:06]} 18. Nxc6 {[%clk 0:01:05]}  bxc6 {[%clk 0:01:04]} 19. gxh3 {[%clk 0:01:05]}  Qxh3 {[%clk 0:01:00]} 20. Ne5 {[%clk 0:00:41]}  Rce8 {[%clk 0:00:40]} 21. Bg4 {[%clk 0:00:29]}  Qh4 {[%clk 0:00:38]} 22. f4 {[%clk 0:00:15]}  Qg3+ {[%clk 0:00:31]} 23. Kh1 {[%clk 0:00:15]}  f5 {[%clk 0:00:19]} 24. Rf3 {[%clk 0:00:11]}  Qxg4 {[%clk 0:00:16]} 25. Nxg4 {[%clk 0:00:10]}  fxg4 {[%clk 0:00:16]} 26. Rf1 {[%clk 0:00:10]}  Ng3+ {[%clk 0:00:16]} 27. Kg2 {[%clk 0:00:11]}  Rxe3 {[%clk 0:00:15]} 28. Rc3 {[%clk 0:00:04]}  Nxf1 {[%clk 0:00:12]} 29. Kxf1 {[%clk 0:00:04]}  Re4 {[%clk 0:00:13]} 30. Bc1 {[%clk 0:00:03]}  Bxf4 {[%clk 0:00:12]} 31. Bxf4 {[%clk 0:00:04]}  Rexf4+ {[%clk 0:00:12]} 32. Kg2 {[%clk 0:00:05]}  Rf2+ {[%clk 0:00:12]} 33. Kg1 {[%clk 0:00:05]}  R2f3 {[%clk 0:00:12]} 34. Rxf3 {[%clk 0:00:06]}  gxf3 {[%clk 0:00:13]} 35. Kf2 {[%clk 0:00:05]}  h6 {[%clk 0:00:12]} 36. Qd4 {[%clk 0:00:06]}  Rf6 {[%clk 0:00:13]} 37. Qxa7 {[%clk 0:00:06]}  g5 {[%clk 0:00:13]} 38. Qb7 {[%clk 0:00:06]}  g4 {[%clk 0:00:12]} 39. Qc8+ {[%clk 0:00:07]}  Kg7 {[%clk 0:00:12]} 40. Qxg4+ {[%clk 0:00:08]}  Kf7 {[%clk 0:00:12]} 41. Qd7+ {[%clk 0:00:08]}  Kg6 {[%clk 0:00:12]} 42. a4 {[%clk 0:00:09]}  h5 {[%clk 0:00:11]} 43. a5 {[%clk 0:00:09]}  h4 {[%clk 0:00:12]} 44. a6 {[%clk 0:00:10]}  h3 {[%clk 0:00:13]} 45. Qxh3 {[%clk 0:00:10]}  d4 {[%clk 0:00:14]} 46. a7 {[%clk 0:00:10]}  d3 {[%clk 0:00:14]} 47. a8=Q {[%clk 0:00:11]}  d2 {[%clk 0:00:14]} 48. Qg8# {[%clk 0:00:11]} 1-0